[Event "German Bundesliga 2024-25"]
[Site "Germany"]
[Date "2024.12.01"]
[Round "4.14"]
[White "Hracek, Zbynek"]
[Black "Wagner, Dennis"]
[Result "1/2-1/2"]
[Annotator "TA"]
[ECO "C77"]
[WhiteElo "2541"]
[BlackElo "2616"]
[PlyCount "47"]
[EventDate "2024.09.27"]
[EventType "team-tourn"]
[EventCountry "GER"]
[SourceTitle "playchess.com"]
[Source "ChessBase"]
[SourceQuality "1"]
[WhiteTeam "Werder Bremen"]
[BlackTeam "Viernheim"]
[TimeControl "40/5400+30:1800+30"]

{[%evp 12,47,25,4,18,26,20,21,21,16,36,23,20,18,17,14,38,16,32,0,0,0,0,0,0,0,16,21,11,0,4,0,2,1,31,29,27,30]} 1. e4 {[%emt 0:00:03]} e5 {[%emt 0:00:08]} 2. Nf3 {[%emt 0:00:07]} Nc6 {[%emt 0:00:06]} 3. Bb5 {[%emt 0:00:16][%cal Bf1b5,Bb5a4,Ba4b3][%mdl 32]} a6 {[%emt 0:00:13]} 4. Ba4 {[%emt 0:00:07]} Nf6 {[%emt 0:00:12]} 5. d3 {[%emt 0:00:04]} b5 {[%emt 0:02:33]} 6. Bb3 {[%emt 0:00:10]} Bc5 {[%emt 0:00:06]} 7. Bg5 {[%emt 0:03:37][%cal Bc1g5,Bg5h4,Bh4g3][%mdl 32]} h6 {[%emt 0:01:41]} 8. Bh4 {[%emt 0:00:07]} d6 {[%emt 0:00:53]} 9. c3 {[%emt 0:02:27]} Bb6 {[%emt 0:03:19] The position is equal.} 10. a4 {[%emt 0:03:58]} Rb8 {[%emt 0:00:10]} 11. Nbd2 {[%emt 0:00:20]} g5 {[%emt 0:03:14]} 12. Bg3 {[%emt 0:00:02]} O-O {[%emt 0:00:37]} 13. O-O {[%emt 0:04:05]} Kg7 {[%emt 0:02:54]} 14. Re1 {[%emt 0:16:14]} b4 {[%emt 0:22:10]} 15. Nc4 {[%emt 0:05:57]} bxc3 {[%emt 0:05:47]} 16. bxc3 {[%emt 0:00:13]} Na5 {[%emt 0:02:29] [#] Strongly threatening ...Nxb3.} 17. Ba2 {[%emt 0:05:39]} Nxc4 {[%emt 0:03:37]} 18. Bxc4 {[%emt 0:00:37]} Ba5 {[%emt 0:07:39]} 19. Rc1 {[%emt 0:03:15]} Rb2 {[%emt 0:05:15]} 20. Re2 {[%emt 0:15:55]} Rxe2 {[%emt 0:00:09]} 21. Qxe2 {[%emt 0:00:02]} Nh5 {[%emt 0:00:56]} 22. d4 {[%emt 0:01:50]} g4 {[%emt 0:07:14]} 23. Nh4 {[%emt 0:00:38]} Qg5 {[%emt 0:00:11]} 24. Rd1 {[%emt 0:07:02] An uneventful encounter.   Weighted Error Value: White=0.08 (flawless) /Black=0.04 (flawless) .  Inaccurate:     	White=1     	Black=1      OK:         	White=6     	Black=9} 1/2-1/2

[Event "German Bundesliga 2024-25"]
[Site "Germany"]
[Date "2024.12.01"]
[Round "4.14"]
[White "Zelbel, Patrick"]
[Black "Tilicheev, Viacheslav"]
[Result "1/2-1/2"]
[Annotator "TA"]
[ECO "C02"]
[WhiteElo "2493"]
[BlackElo "2437"]
[PlyCount "57"]
[EventDate "2024.09.27"]
[EventType "team-tourn"]
[EventCountry "GER"]
[SourceTitle "playchess.com"]
[Source "ChessBase"]
[SourceQuality "1"]
[WhiteTeam "Muelheim Nord"]
[BlackTeam "Deggendorf"]
[TimeControl "40/5400+30:1800+30"]

{[%evp 14,57,13,24,25,15,32,16,16,17,18,23,20,8,7,0,0,-4,7,8,127,121,108,45,41,45,39,28,50,70,52,45,43,43,56,35,31,18,16,14,14,0,0,0,0,0]} 1. e4 {[%emt 0:00:02]} e6 {[%emt 0:00:09]} 2. d4 {[%emt 0:00:05]} d5 {[%emt 0:00:07]} 3. e5 {[%emt 0:00:09]} c5 {[%emt 0:00:32]} 4. c3 {[%emt 0:00:03]} Nc6 {[%emt 0:00:07]} 5. Nf3 {[%emt 0:00:04]} Bd7 {[%emt 0:00:05]} 6. Be2 {[%emt 0:00:15]} Nge7 {[%emt 0:05:27]} 7. O-O {[%emt 0:00:22]} Ng6 {[%emt 0:02:22]} 8. g3 {[%emt 0:00:19]} Be7 {[%emt 0:07:30][%cal Bf8e7,Be7c5,Bc5d4][%mdl 32]} 9. h4 {[%emt 0:00:46][%cal Bh2h4,Bh4h5][%mdl 32]} O-O {[%emt 0:12:32]} 10. h5 {[%emt 0:00:56]} Nh8 {[%emt 0:00:07]} 11. dxc5 {[%emt 0:00:40]} Bxc5 {[%emt 0:12:46]} 12. c4 {[%emt 0:00:13][%cal Bc3c4,Bc4d5][%mdl 32]} f6 $1 {[%emt 0:08:20]} 13. cxd5 {[%emt 0:13:28]} (13. exf6 {seems wilder.} Qxf6 14. Nc3 Ne5 15. Bf4) 13... Nxe5 {[%emt 0:00:42]} 14. Nxe5 {[%emt 0:00:27]} fxe5 {[%emt 0:00:08]} 15. Nc3 {[%emt 0:00:33] And now Bc4 would win.} Bd4 {[%emt 0:07:09]} 16. Bc4 {[%emt 0:07:26]} b5 {[%emt 0:11:04] [#]} 17. Bb3 $1 $16 {[%emt 0:07:19]} ({Don't play} 17. Nxb5 $6 Bxb5 18. Bxb5 exd5 $11) ({And not} 17. Bxb5 exd5 18. h6 Rxf2 19. Rxf2 Bxb5 20. hxg7 (20. Nxb5 Bxf2+ 21. Kxf2 Qb6+ $15) 20... Kxg7 (20... Bxf2+ 21. Kxf2 Kxg7 22. Nxb5 $11) 21. Nxb5 (21. Qg4+ Ng6 $17) 21... Bxf2+ 22. Kxf2 Qb6+ 23. Kg2 Qxb5 $17) 17... exd5 {[%emt 0:06:56]} 18. Nxd5 {[%emt 0:25:34]} (18. Be3 $16) 18... Nf7 $14 {[%emt 0:02:16]} 19. Be3 {[%emt 0:06:19]} Bxe3 {[%emt 0:04:40]} 20. Nxe3 {[%emt 0:00:38]} Kh8 {[%emt 0:00:29]} 21. Bxf7 {[%emt 0:09:28]} Rxf7 {[%emt 0:00:11]} 22. Qd5 {[%emt 0:00:57][%csl LRe5,LRf7]} Qe8 {[%emt 0:02:11]} 23. Rac1 {[%emt 0:00:50] Prevents Bc6.} Be6 {[%emt 0:06:49]} 24. Qxe5 {[%emt 0:00:39]} Bxa2 {[%emt 0:00:09]} 25. Qc3 {[%emt 0:02:53]} Qe6 {[%emt 0:03:04] The position is equal.} 26. Qd3 {[%emt 0:05:00]} a6 {[%emt 0:02:54]} 27. Rc5 {[%emt 0:04:01]} Raf8 {[%emt 0:00:32]} 28. Qc3 {[%emt 0:01:06]} Qh3 {[%emt 0:02:32]} 29. b3 {[%emt 0:09:32] Weighted Error Value: White=0.08 (flawless) /Black=0.12 (very precise) .  Mistake:       	White=1     	Black=1      OK:         	White=9     	Black=12     Best:        	White=1     	---        Strong:       	White=1     	Black=1} 1/2-1/2

[Event "German Bundesliga 2024-25"]
[Site "Germany"]
[Date "2024.12.01"]
[Round "4.14"]
[White "Hoffmann, Paul"]
[Black "Movsesian, Sergei"]
[Result "0-1"]
[Annotator "TA"]
[ECO "B29"]
[WhiteElo "2375"]
[BlackElo "2609"]
[PlyCount "60"]
[EventDate "2024.09.27"]
[EventType "team-tourn"]
[EventCountry "GER"]
[SourceTitle "playchess.com"]
[Source "ChessBase"]
[SourceQuality "1"]
[WhiteTeam "TU Dresden"]
[BlackTeam "Baden-Baden"]
[TimeControl "40/5400+30:1800+30"]

{[%evp 9,60,0,0,0,10,4,12,12,15,0,10,-12,0,0,0,0,0,0,0,0,21,-38,-7,-6,0,0,0,-51,-39,-73,-77,-74,-65,-68,-72,-88,-106,-100,-77,-86,-127,-112,-102,-124,-124,-125,-117,-118,-125,-120,-80,-769,-768]} 1. e4 {[%emt 0:00:03]} c5 {[%emt 0:00:05]} 2. Nf3 {[%emt 0:00:23]} Nc6 {[%emt 0:00:08]} 3. g3 {[%emt 0:01:25]} Nf6 {[%emt 0:03:56]} 4. Nc3 {[%emt 0:01:09]} d5 {[%emt 0:02:35]} 5. exd5 {[%emt 0:02:21]} Nxd5 {[%emt 0:00:17]} 6. Bg2 {[%emt 0:00:10]} g6 {[%emt 0:01:33]} 7. O-O {[%emt 0:01:58]} Bg7 {[%emt 0:00:44]} 8. Re1 {[%emt 0:06:29] The position is equal.} Nc7 {[%emt 0:05:25]} 9. d3 {[%emt 0:02:57]} O-O {[%emt 0:01:15]} 10. Nd2 {[%emt 0:02:20][%cal Bf3d2,Bd2c4,Bc4e3][%mdl 32]} Bd7 {[%emt 0:08:00]} 11. Nc4 {[%emt 0:05:50]} Qc8 {[%emt 0:12:22]} 12. Ne3 {[%emt 0:06:30]} Re8 {[%emt 0:02:30]} 13. Ne4 {[%emt 0:02:58]} b6 {[%emt 0:04:04]} 14. c3 {[%emt 0:04:10]} Qa6 {[%emt 0:04:19]} 15. Bf1 {[%emt 0:06:05]} (15. a4 $11) 15... Qb7 {[%emt 0:01:06]} 16. Bg2 {[%emt 0:02:53]} Rad8 {[%emt 0:00:23]} 17. a3 {[%emt 0:19:27]} Qa6 {[%emt 0:01:34] Strongly threatening ...Ne5.} 18. Bf1 {[%emt 0:01:59]} (18. f4 $11) 18... Qc8 {[%emt 0:00:40]} 19. b4 {[%emt 0:05:35]} Ne5 {[%emt 0:18:00]} 20. f4 {[%emt 0:05:45] [#]} Bc6 $1 {[%emt 0:02:45]} 21. fxe5 {[%emt 0:03:52] Black must now prevent Ng4.} Bxe4 {[%emt 0:00:05]} 22. Qc2 {[%emt 0:01:33]} Ba8 {[%emt 0:01:16]} 23. bxc5 {[%emt 0:03:48]} Bxe5 {[%emt 0:03:09]} 24. d4 {[%emt 0:06:09] cxb6 is the strong threat.} Bg7 {[%emt 0:00:34]} 25. cxb6 {[%emt 0:00:33]} axb6 {[%emt 0:00:30]} 26. Bb2 {[%emt 0:01:49]} e5 {[%emt 0:03:14]} 27. Rad1 {[%emt 0:00:42]} Bf3 {[%emt 0:03:07]} 28. Rc1 {[%emt 0:00:41]} Ne6 {[%emt 0:07:06]} ({Don't play} 28... exd4 $6 29. cxd4 Bh6 30. Qf2 Rxe3 31. Rxe3 $11) 29. Qf2 {[%emt 0:01:33]} Bb7 {[%emt 0:00:31] And now ...f5 would win. Black is more active.} 30. Bb5 $2 {[%emt 0:00:59][%mdl 8192] [#]} (30. d5 $17 Bxd5 31. Nxd5 Rxd5 32. c4) 30... Ng5 $1 {[%emt 0:00:22] Weighted Error Value: White=0.35/Black=0.07 (flawless) .  Loses game:     	White=1     	---        Mistake:       	White=2     	---        Inaccurate:     	White=1     	Black=2      OK:         	White=8     	Black=13     Best:        	White=1     	Black=2} 0-1

[Event "German Bundesliga 2024-25"]
[Site "Germany"]
[Date "2024.12.01"]
[Round "4.15"]
[White "Meier, Georg"]
[Black "Babula, Vlastimil"]
[Result "1/2-1/2"]
[Annotator "RC"]
[ECO "A08"]
[WhiteElo "2603"]
[BlackElo "2496"]
[PlyCount "41"]
[EventDate "2024.09.27"]
[EventType "team-tourn"]
[EventCountry "GER"]
[SourceTitle "playchess.com"]
[Source "ChessBase"]
[SourceQuality "1"]
[WhiteTeam "Viernheim"]
[BlackTeam "Werder Bremen"]
[TimeControl "40/5400+30:1800+30"]

1. Nf3 {[%emt 0:00:03]} d5 {[%emt 0:00:20]} 2. g3 {[%emt 0:00:12]} Nf6 {[%emt 0:00:38]} 3. Bg2 {[%emt 0:00:05]} c5 {[%emt 0:00:45]} 4. O-O {[%emt 0:00:16]} e6 {[%emt 0:00:25]} 5. d3 {[%emt 0:01:02]} Nc6 {[%emt 0:01:01]} 6. e4 {[%emt 0:00:14]} Be7 {[%emt 0:05:51]} 7. Bf4 {[%emt 0:00:36]} O-O {[%emt 0:08:52]} 8. a4 {[%emt 0:01:18]} dxe4 {[%emt 0:12:55]} 9. dxe4 {[%emt 0:00:42]} Nxe4 {[%emt 0:00:29]} 10. Ne5 {[%emt 0:00:08]} Nxe5 {[%emt 0:01:07]} 11. Bxe5 {[%emt 0:00:04]} Bf6 {[%emt 0:04:40]} 12. f4 {[%emt 0:28:22]} Bxe5 {[%emt 0:02:53]} 13. Qxd8 {[%emt 0:12:49]} Rxd8 {[%emt 0:00:35]} 14. fxe5 {[%emt 0:00:07]} f5 {[%emt 0:01:13]} 15. Bxe4 {[%emt 0:00:58]} fxe4 {[%emt 0:00:05]} 16. Nc3 {[%emt 0:00:06]} e3 {[%emt 0:26:01]} 17. Rae1 {[%emt 0:18:27]} Bd7 {[%emt 0:02:57]} 18. Rxe3 {[%emt 0:01:17]} Bc6 {[%emt 0:00:54]} 19. Ne4 {[%emt 0:02:24]} Bxe4 {[%emt 0:01:17]} 20. Rxe4 {[%emt 0:00:06]} Rd2 {[%emt 0:01:40]} 21. Rf2 {[%emt 0:01:38]} 1/2-1/2

[Event "German Bundesliga 2024-25"]
[Site "Germany"]
[Date "2024.12.01"]
[Round "4.15"]
[White "Miljkovic, Miroslav D"]
[Black "Feygin, Michael"]
[Result "0-1"]
[Annotator "TA"]
[ECO "A61"]
[WhiteElo "2422"]
[BlackElo "2448"]
[PlyCount "168"]
[EventDate "2024.09.27"]
[EventType "team-tourn"]
[EventCountry "GER"]
[SourceTitle "playchess.com"]
[Source "ChessBase"]
[SourceQuality "1"]
[WhiteTeam "Deggendorf"]
[BlackTeam "Muelheim Nord"]
[TimeControl "40/5400+30:1800+30"]

{[%evp 93,168,-358,-315,-362,-385,-381,-369,-343,-345,-652,-642,-857,-553,-830,-804,-496,-898,-862,0,-60,0,-925,-894,-772,-704,-847,0,-181,0,-1151,-1139,-1141,-1020,-1100,-1046,-866,-863,-1339,-1331,-1300,-1322,-1693,-1583,-29947,-29953,-29945,-29951,-29971,-7272,-29988,-29989,-29989,-29990,-29993,-29994,-29995,-29976,-29976,-29977,-29977,-29978,-29978,-29979,-29979,-29980,-29978,-29975,-29983,-29969,-29986,-29987,-29988,-29989,-29990,-29990,-29991,-29992]} 1. d4 {[%emt 0:00:05]} Nf6 {[%emt 0:00:06]} 2. c4 {[%emt 0:00:12]} c5 {[%emt 0:00:06]} 3. d5 {[%emt 0:01:18]} e6 {[%emt 0:00:06]} 4. Nc3 {[%emt 0:00:58]} exd5 {[%emt 0:00:05]} 5. cxd5 {[%emt 0:00:08]} d6 {[%emt 0:00:05]} 6. Nf3 {[%emt 0:05:01]} g6 {[%emt 0:00:20]} 7. Bf4 {[%emt 0:00:08]} a6 {[%emt 0:00:12]} 8. a4 {[%emt 0:00:19]} Bg7 {[%emt 0:00:06]} 9. h3 {[%emt 0:00:41]} O-O {[%emt 0:00:09]} 10. e3 {[%emt 0:01:39]} Re8 {[%emt 0:00:07] A61: Modern Benoni: Nf3 without early e4.} 11. Nd2 {[%emt 0:00:45]} Nbd7 {[%emt 0:01:01]} 12. Be2 {[%emt 0:00:50]} Ne5 {[%emt 0:00:08]} 13. Bh2 {[%emt 0:00:15]} Qe7 {[%emt 0:12:46]} 14. O-O {[%emt 0:10:36]} Nfd7 {[%emt 0:03:17]} 15. Qc2 {[%emt 0:08:07]} f5 {[%emt 0:00:26]} 16. Rae1 {[%emt 0:01:21]} Nf6 {[%emt 0:14:05]} 17. Kh1 {[%emt 0:09:01]} Rb8 {[%emt 0:11:13]} 18. Nc4 $146 {[%emt 0:09:39]} ({Predecessor:} 18. f4 Nf7 19. Bd3 Bd7 20. e4 fxe4 21. Ndxe4 Nxe4 22. Nxe4 Bf5 23. b3 Bxe4 24. Rxe4 {1-0 Hansen,E (2584)-Chiku Ratte,O (2413) Quebec Carnaval 2016 (5)}) 18... Nxc4 {[%emt 0:07:59]} 19. Bxc4 {[%emt 0:00:02]} Ne4 {[%emt 0:00:11]} 20. a5 {[%emt 0:18:42]} b5 {[%emt 0:04:41]} 21. axb6 {[%emt 0:00:38]} Rxb6 {[%emt 0:00:06]} 22. Nxe4 {[%emt 0:09:38]} fxe4 {[%emt 0:02:46]} 23. b3 {[%emt 0:02:03]} Bd7 {[%emt 0:00:47]} 24. f3 {[%emt 0:05:21]} Bb5 {[%emt 0:00:42]} 25. Bxb5 {[%emt 0:02:36]} axb5 {[%emt 0:03:20]} 26. fxe4 {[%emt 0:03:30]} Qxe4 {[%emt 0:02:14]} 27. Qd1 {[%emt 0:00:36]} Ra6 {[%emt 0:04:16]} 28. Rf4 {[%emt 0:00:57]} Qe7 {[%emt 0:01:10]} 29. Qd3 {[%emt 0:00:17]} Ra5 {[%emt 0:16:18]} 30. Rf3 {[%emt 0:00:04]} b4 {[%emt 0:06:40]} 31. Ref1 {[%emt 0:02:43]} Be5 {[%emt 0:01:16]} 32. Bf4 {[%emt 0:03:40]} Bxf4 {[%emt 0:04:07]} 33. exf4 {[%emt 0:00:01]} Qe4 {[%emt 0:01:10]} 34. Qxe4 {[%emt 0:00:50]} Rxe4 {[%emt 0:00:02]} 35. f5 {[%emt 0:00:02]} g5 {[%emt 0:00:24]} 36. Rg3 {[%emt 0:02:09]} h6 {[%emt 0:00:02]} 37. Rg4 {[%emt 0:00:05]} Rxg4 {[%emt 0:03:19]} 38. hxg4 {[%emt 0:00:01]} Ra3 {[%emt 0:00:06]} 39. Rb1 {[%emt 0:00:20]} Kf7 {[%emt 0:01:39]} 40. Kg1 {[%emt 0:00:50]} Kf6 {[%emt 0:00:41]} 41. Kf2 {[%emt 0:30:48]} Ra2+ {[%emt 0:17:16]} 42. Kf3 {[%emt 0:00:00]} Rd2 {[%emt 0:00:06]} 43. Re1 {[%emt 0:00:00]} Rxd5 {[%emt 0:03:41]} 44. Re6+ {[%emt 0:00:00]} Kg7 {[%emt 0:00:27]} 45. Rg6+ {[%emt 0:00:00]} Kh7 {[%emt 0:00:46]} 46. Re6 {[%emt 0:00:00]} Rd3+ {[%emt 0:00:50]} 47. Ke4 {[%emt 0:00:00]} Rd4+ {[%emt 0:00:13]} (47... Rxb3 48. Re7+ Kg8 49. f6 $18) 48. Ke3 {[%emt 0:00:00]} Rxg4 {[%emt 0:02:07]} 49. Rxd6 {[%emt 0:00:00]} Rxg2 {[%emt 0:00:14]} 50. Rd7+ {[%emt 0:00:00]} Kg8 {[%emt 0:00:06]} 51. Rc7 $2 {[%emt 0:00:00]} (51. Ke4 Re2+ 52. Kf3) 51... Rg4 $19 {[%emt 0:03:54]} 52. Rxc5 {[%emt 0:00:00]} Rf4 {[%emt 0:00:21]} 53. Rc6 {[%emt 0:00:00]} Kg7 {[%emt 0:00:16]} (53... Rxf5 54. Rxh6 Kg7 55. Rb6 $17) 54. Rg6+ {[%emt 0:00:00]} Kh7 {[%emt 0:00:05]} 55. Rf6 {[%emt 0:00:00]} Kg7 $2 {[%emt 0:00:17]} (55... h5 $19 56. Rf7+ Kg8) 56. Rg6+ $15 {[%emt 0:00:00]} Kh7 $2 {[%emt 0:00:04][%mdl 8192]} (56... Kf7 $15 57. Rxh6 Rxf5) 57. Rf6 $1 $19 {[%emt 0:00:00]} h5 {[%emt 0:02:03]} 58. Rf7+ {[%emt 0:00:00]} Kg8 {[%emt 0:02:12]} 59. Rf6 {[%emt 0:00:00]} Kh7 $2 {[%emt 0:00:11]} (59... Rg4 60. Kf3 Kg7) 60. Rf7+ $19 {[%emt 0:00:00]} Kg8 $2 {[%emt 0:00:34]} (60... Kh8 61. f6 h4) 61. Rf6 $1 $19 {[%emt 0:00:00]} Rg4 {[%emt 0:00:17]} 62. Kf3 {[%emt 0:01:34]} Kg7 {[%emt 0:00:20]} 63. Rg6+ {[%emt 0:00:31]} Kf7 {[%emt 0:01:03]} 64. Rb6 {[%emt 0:10:18]} Rf4+ {[%emt 0:00:09]} 65. Kg2 {[%emt 0:00:39]} h4 {[%emt 0:00:37]} (65... Rxf5 $2 66. Rxb4 Rd5 67. Rc4 $19) 66. Kh2 {[%emt 0:01:56]} Rxf5 {[%emt 0:03:24]} 67. Rxb4 {[%emt 0:00:04]} Kg6 {[%emt 0:00:03]} 68. Rc4 {[%emt 0:01:35]} Rf2+ {[%emt 0:00:06]} 69. Kg1 {[%emt 0:00:10]} Rb2 {[%emt 0:00:05]} 70. b4 {[%emt 0:00:47]} Kh5 {[%emt 0:00:22]} (70... h3 $142 71. b5 Kh5 (71... Rxb5 $2 72. Kh2 $19) 72. Rc8 g4 (72... Rxb5 $2 73. Kh2 $19) 73. Rh8+ Kg5 74. b6 Kf4 (74... Rxb6 $2 75. Kf2 $19) 75. b7 Rb1+ (75... Rxb7 $2 76. Rf8+ Kg3 77. Rf1 $19) 76. Kf2 g3+ (76... Rxb7 77. Rf8+ Kg5 78. Rg8+ Kf5 79. Rf8+ Kg6 80. Kg3 $15) 77. Ke2 Rb2+ (77... Rxb7 $2 78. Rh4+ Kg5 79. Rxh3 $19) 78. Kd3 h2 (78... Rxb7 $2 79. Kd4 $19) 79. Rf8+ Kg4 80. Rg8+ Kf3 81. Ra8 Rxb7 (81... h1=R $2 82. Rf8+ Kg4 83. b8=Q $19) 82. Rh8 Kg2 83. Kc4 h1=Q (83... h1=R {is a self mate.} 84. Rg8 Rh4+ 85. Kc5 Kh2 86. Rf8 g2 87. Rg8 g1=Q+ 88. Rxg1 Kxg1 89. Kc6 Rb2 90. Kd6 Rb5 91. Kc6 Rhh5 92. Kc7 Rh6 93. Kd8 Rh7 94. Kc8 Kh2 95. Kd8 Rb8#) 84. Rxh1 Kxh1 85. Kd5 g2 86. Kc6 Rh7 (86... g1=R {gets mated.} 87. Kxb7 Rg6 88. Kc7 Kg2 89. Kd7 Kg3 90. Ke7 Kf4 91. Kf7 Rd6 92. Ke7 Ke5 93. Kf7 Re6 94. Kg7 Kf5 95. Kf7 Re5 96. Kg7 Re7+ 97. Kf8 Kf6 98. Kg8 Re8+ 99. Kh7 Rf8 100. Kh6 Rh8#) 87. Kd6 g1=Q (87... g1=B 88. Ke6 Kg2 89. Ke5 Kf3 90. Kd5 Kf4 91. Kd6 Ke4 92. Ke6 Rh6+ 93. Kf7 Bd4 94. Ke8 Kd5 95. Kd8 Rh7 96. Kc8 Bb6 97. Kb8 Kc6 98. Kc8 Rh8#) 88. Ke5 Qg5+ 89. Ke6 Rh6+ 90. Kf7 Rf6+ 91. Ke8 Qg7 92. Kd8 Rf8#) 71. Rd4 {[%emt 0:00:25]} h3 {[%emt 0:01:02]} 72. b5 {[%emt 0:00:53]} g4 {[%emt 0:02:28]} 73. Rd5+ {[%emt 0:00:35]} Kh4 {[%emt 0:00:05]} 74. Rd4 {[%emt 0:00:32]} Rxb5 {[%emt 0:00:14]} 75. Kh2 {[%emt 0:00:10]} Rb2+ {[%emt 0:00:08]} 76. Kg1 {[%emt 0:00:03]} Kg5 {[%emt 0:01:01]} 77. Rd5+ {[%emt 0:00:27]} Kf4 {[%emt 0:00:08]} 78. Rd4+ {[%emt 0:00:51]} Kf5 {[%emt 0:00:23]} 79. Rd3 {[%emt 0:00:34]} Ke4 {[%emt 0:00:15]} 80. Rc3 {[%emt 0:00:26]} Rd2 {[%emt 0:00:08]} 81. Rg3 {[%emt 0:01:00]} Kf4 {[%emt 0:00:16]} 82. Ra3 {[%emt 0:00:06]} g3 {[%emt 0:01:16]} 83. Ra1 {[%emt 0:00:21]} Ke3 {[%emt 0:00:28]} 84. Ra3+ {[%emt 0:00:13] [#]} Rd3 $1 {[%emt 0:00:06]} 0-1

[Event "German Bundesliga 2024-25"]
[Site "Germany"]
[Date "2024.12.01"]
[Round "4.15"]
[White "Hagner, Bennet"]
[Black "Loxine, Jakov"]
[Result "1-0"]
[Annotator "TA"]
[ECO "B35"]
[WhiteElo "2352"]
[BlackElo "2395"]
[PlyCount "89"]
[EventDate "2024.09.27"]
[EventType "team-tourn"]
[EventCountry "GER"]
[SourceTitle "playchess.com"]
[Source "ChessBase"]
[SourceQuality "1"]
[WhiteTeam "Baden-Baden"]
[BlackTeam "TU Dresden"]
[TimeControl "40/5400+30:1800+30"]

{[%evp 14,89,23,25,42,5,18,-1,12,12,10,9,26,0,44,22,20,19,35,35,54,50,57,61,75,46,65,50,57,54,125,100,168,178,173,159,217,196,200,205,218,219,219,218,246,241,242,233,226,223,224,225,235,227,234,237,223,186,223,204,189,0,229,195,229,239,249,247,234,227,352,353,389,364,449,441,29989,29990]} 1. e4 {[%emt 0:00:03]} c5 {[%emt 0:00:06]} 2. Nc3 {[%emt 0:00:25]} Nc6 {[%emt 0:00:09]} 3. Nge2 {[%emt 0:00:08]} g6 {[%emt 0:02:15]} 4. d4 {[%emt 0:00:08]} cxd4 {[%emt 0:00:04]} 5. Nxd4 {[%emt 0:00:05]} Bg7 {[%emt 0:00:03]} 6. Be3 {[%emt 0:00:09]} Nf6 {[%emt 0:00:27]} 7. Bc4 {[%emt 0:00:07]} O-O {[%emt 0:00:17]} 8. Bb3 {[%emt 0:00:05]} Re8 {[%emt 0:00:37]} 9. Nxc6 {[%emt 0:02:43]} dxc6 {[%emt 0:00:48]} 10. h3 {[%emt 0:00:12]} Qxd1+ {[%emt 0:43:35] The position is equal.} (10... Qc7 {is interesting.} 11. Qf3 b5 12. O-O a5) 11. Rxd1 {[%emt 0:00:29]} Nd7 {[%emt 0:00:07]} 12. O-O {[%emt 0:06:33]} b6 {[%emt 0:11:03]} 13. Rd2 {[%emt 0:27:04]} Nf8 {[%emt 0:08:34]} 14. Rfd1 {[%emt 0:03:03]} Be6 {[%emt 0:00:25]} 15. f4 {[%emt 0:06:24]} Bxc3 {[%emt 0:05:36]} 16. bxc3 {[%emt 0:00:03]} f5 {[%emt 0:01:43] Black is weak on the dark squares} 17. exf5 {[%emt 0:01:13]} gxf5 {[%emt 0:00:05]} 18. g4 {[%emt 0:03:11]} Bxb3 {[%emt 0:01:32]} 19. axb3 {[%emt 0:03:49]} Ne6 {[%emt 0:00:15]} 20. Rd7 {[%emt 0:06:46]} Kf7 {[%emt 0:00:48]} 21. Kf2 {[%emt 0:14:52]} Kf6 {[%emt 0:01:14]} ({Black should play} 21... Rg8 $14) 22. Ra1 {[%emt 0:01:56] White has more active pieces.} a6 {[%emt 0:05:03]} (22... a5 $16) 23. Rb7 $36 {[%emt 0:01:36][%mdl 2048] Keeping Black busy.} b5 {[%emt 0:01:23]} 24. Rb6 {[%emt 0:00:23][%csl LRa6,LRc6]} Rec8 {[%emt 0:00:09]} (24... a5 $16 25. Rxc6 a4) 25. Raxa6 {[%emt 0:00:29]} Rxa6 {[%emt 0:00:08]} 26. Rxa6 {[%emt 0:00:05][%mdl 4096] Endgame. KRB-KRN} h6 {[%emt 0:01:20]} 27. Kf3 {[%emt 0:00:36]} Kg6 {[%emt 0:01:03]} 28. Ra7 {[%emt 0:03:59]} Rc7 {[%emt 0:01:25]} 29. Ra8 {[%emt 0:00:09]} Rd7 {[%emt 0:00:25]} 30. Rg8+ {[%emt 0:01:17]} Kf6 {[%emt 0:02:19]} 31. Rh8 {[%emt 0:00:11]} Kg7 {[%emt 0:03:16]} 32. Rc8 {[%emt 0:00:07]} Rc7 {[%emt 0:00:14]} 33. Rb8 {[%emt 0:00:51]} Kg6 {[%emt 0:00:17]} 34. Bb6 {[%emt 0:09:46]} Rd7 {[%emt 0:00:07]} 35. Rg8+ {[%emt 0:00:25]} Kf6 {[%emt 0:00:45]} 36. Rh8 {[%emt 0:02:00]} Kg6 {[%emt 0:01:03]} 37. Rg8+ {[%emt 0:00:03]} Kf6 $1 {[%emt 0:00:06]} 38. Rc8 {[%emt 0:00:07]} Rd2 {[%emt 0:02:24]} 39. Rxc6 {[%emt 0:00:12]} Rxc2 {[%emt 0:00:05]} 40. Bd4+ {[%emt 0:04:39]} Kf7 {[%emt 0:02:08] [#] ...Nxd4+ would now be deadly.} 41. Be5 {[%emt 0:30:07]} (41. gxf5 $2 Nxd4+ 42. cxd4 Rxc6 $19) 41... b4 {[%emt 0:34:09]} (41... fxg4+ $142 42. hxg4 b4) 42. gxf5 {[%emt 0:00:00][%cal Bg4f5,Bf5f6,Bf6e7][%mdl 32]} Ng7 {[%emt 0:00:00]} 43. f6 {[%emt 0:00:00]} ({Much less strong is} 43. Rxh6 Nxf5 44. Rh5 Ke6 45. cxb4 Ra2 $18) 43... Ne6 {[%emt 0:00:00]} 44. fxe7 {[%emt 0:00:00]} bxc3 {[%emt 0:00:00] [#]} (44... Kxe7 $18 45. Ke4 bxc3) 45. Rxe6 $1 {[%emt 0:00:00] Weighted Error Value: White=0.13 (very precise) /Black=0.36.  Mistake:       	---       	Black=5      Inaccurate:     	White=3     	Black=1      OK:         	White=20    	Black=10     Best:        	---       	Black=1      Strong:       	---       	Black=1      Brilliant:      	White=1     	---} 1-0